{"text_format":"1","workbook":"xlsx","n_sheets":5,"sheets":["Αρχική","Οι βαθμοί μου","Επιλεγόμενα","Υποχρεωτικά","Πτυχιακή"],"not_rendered":{"charts":0,"images":1,"macros":1,"external_links":0,"defined_names":0,"comments":0,"pivot_tables":0},"unopened":[],"bounds":{"document_bytes":16777216,"sheet_cells":100000,"rows_first":2000,"rows_last":500,"rows_between":2000,"halvings":0,"cell_chars":16384,"cell_head_chars":4096},"cells_cut":0,"cells_raw":0,"read":"whole","date_system":"1900"}

{"sheet":"Αρχική","index":0,"n_rows":100,"n_cols":11,"rows_kept":100,"cut":false,"hidden":false,"merged":[[42,0,42,4],[17,1,17,3],[18,1,18,3],[19,1,19,3],[22,0,22,4],[23,0,23,4],[12,7,13,11],[15,1,15,3],[12,1,12,3],[13,1,13,3],[14,1,14,3],[8,6,9,12],[10,6,10,12],[1,1,5,9],[99,0,99,2],[31,0,31,4],[23,5,23,8],[24,5,24,8],[25,5,25,8],[26,5,26,8],[27,5,30,8],[31,5,31,8],[30,0,30,4],[28,0,28,4],[29,0,29,4],[24,0,25,4],[26,0,27,4],[22,9,22,15],[23,9,23,15],[29,9,30,15],[27,9,28,15],[25,9,26,15],[24,9,24,15],[41,0,41,4],[32,0,32,4],[33,0,33,4],[36,0,36,4],[40,0,40,4],[39,0,39,4],[38,0,38,4],[37,0,37,4],[35,0,35,4],[34,0,34,4]]}
[]
[null,"!!!Πριν κάνεις οτιδήποτε δες αν είναι ενεργοποιημένες οι μακροεντολές!!! Αν έχει εμφανιστεί ακριβώς πάνω από αυτά τα κελιά η Προειδοποίηση ασφαλείας (Μπλε ή κίτρινη ασπίδα) «Οι μακροεντολές δεν έχουν ενεργοποιηθεί», τότε: 1) Κάνε click στο κουμπί «Επιλογές…» (Enable editing)  2) Κάνε click στη κουκίδα «Ενεργοποίηση αυτού του περιεχομένου» (Enable content) 3) Κάνε click στο OK. Όταν η κίτρινη μπάρα εξαφανιστεί το πρόγραμμα είναι έτοιμο για χρήση."]
[]
[]
[]
[]
[]
[]
[null,null,null,null,null,null,"Πρόγραμμα Υπολογισμού Βαθμού Πτυχίου"]
[]
[null,null,null,null,null,null,"Για φοιτητές με έτος εγγραφής 2012 και 2013"]
[]
[null,"Για το τμήμα Χημείας του ΕΚΠΑ",null,null,null,null,null,"Γράψε εδώ τον Αριθμό Μητρώου σου με 9 ψηφία και πάτησε Enter. Π.χ. 201300061"]
[null,"©Κώτος Ελευθέριος"]
[null,"at2014061work1@hotmail.com"]
[null,"Νοέμβριος 2017",null,null,null,null,null,null,"-->",null,"<--"]
[null,null,null,"v2.6-Midi"]
[null,"Για παράπονα"]
[null,"Αναζητήστε τον κ.Τσεκούρα"]
[null,"thanost@chem.uoa.gr"]
[]
[]
["//Changelog//"]
["02-11-17 //v1.0 Αρχική Έκδοση",null,null,null,null,"-Πληροφορίες Συμβατότητας-",null,null,null,"-Χρήσιμες Πληροφορίες-"]
["03-11-17 //v2.0 Διορθώσεις στο 2014, \"Αρχική\" (Sheet1), Υποχρεωτικά (Sheet4), Προετοιμασία <2014",null,null,null,null,"Ελέγχθηκε και δουλεύει σε:",null,null,null,"●Μη συμβατό με κινητά τηλέφωνα."]
[null,null,null,null,null,"Windows:",null,null,null,"● Αν υπάρχει επιλογή, να ανοίγεται πάντα με την νεώτερη έκδοση του excel. Ειδικά αν                     |  χρησιμοποιηθεί στο ΣΣΑΤΕΣ, επιλέξτε να ανοίξει με το Excel2010 και όχι το Excel2003."]
["04-11-17 //v3.0 2012+, Πιστοποιήσεις, Overhaul των μαθηματων επιλογής,Text fixes,Προετοιμασία <2012",null,null,null,null,"Excel 2003, Excel 2007, Excel 2010"]
[null,null,null,null,null,"Αν χρησιμοποιηθεί σε οποιοδήποτε άλλο πρόγραμμα που δεν περιλαμβάνεται στην παραπάνω λίστα, ενδέχεται να μην λειτουργήσει σωστά.",null,null,null,"●Αν κάτι δεν λειτούργει σωστά και είναι σίγουρο ότι ακολουθήθηκαν όλες οι οδηγίες,               | χρησιμοποιήστε το πρώτο email για να περιγράψετε το λάθος, ώστε να το διορθώσω."]
["04-11-17 //v3.1 Βελτιώσεις συμβατότητας"]
["05-11-17 //v1.0-L Αρχική Lite Έκδοση πάνω στην v3.5",null,null,null,null,null,null,null,null,"●Αν έχετε προτάσεις για κάτι που θα θέλατε να δείτε στο πρόγραμμα, χρησιμοποιήστε            | το πρώτο email και θα τις αξιολογήσω και ίσως προστεθούν από την επόμενη έκδοση."]
["06-11-17 //v1.1-L Fix στη ΦΟΜΜ"]
["07-11-17 //v1.5-L Βελτιώσεις συμβατότητας"]
["08-11-17 //v1.6-L Καρτέλα \"Πτυχιακή\", Text fixes"]
["09-11-17 //v1.7-L  SUMIFS to SUMPRODUCT"]
["16-11-17 //v1.8-L  Μονάδες για πτυχιακή"]
["17-11-17 //v1.9-L  Διορθώσεις στις πτυχιακές"]
["19-11-17 //v2.0-L  Uncheck τα επιλογής για λαθος ΑΜ"]
["23-11-17 //v2.1-L  Πιστωτικές Μονάδες"]
["24-11-17 //v2.2-L  Fix στα κριτήρια της Οργανικής"]
["25-11-17 //v2.3-L  Jingle για 100%"]
["29-11-17 //v2.4-L  Fix στις πτυχιακές ΦΧ"]
["30-11-17 //v2.5-L  Text fixes"]
["06-12-17 //v2.6-L  \"-\" αν Πτυχιακή ΟΚ, Secret checks"]
[]
[]
[]
[]
[]
[]
[]
[]
[]
[]
[]
[]
[]
[]
[]
[]
[]
[]
[]
[]
[]
[]
[]
[]
[]
[]
[]
[]
[]
[]
[]
[]
[]
[]
[]
[]
[]
[]
[]
[]
[]
[]
[]
[]
[]
[]
[]
[]
[]
[]
[]
[]
[]
[]
[]
[]
["Password: iknowwhatiamdoing"]

{"sheet":"Οι βαθμοί μου","index":1,"n_rows":73,"n_cols":19,"rows_kept":73,"cut":false,"hidden":false,"merged":[[31,7,31,8],[27,9,31,9],[71,0,74,2],[70,6,72,6],[71,11,71,12],[30,7,30,8],[70,11,70,12],[27,6,29,6],[21,15,21,16],[27,7,27,8],[29,7,29,8],[28,7,28,8],[26,15,26,18],[26,7,26,9],[21,17,22,18],[22,15,22,16],[20,6,22,6],[17,7,17,9],[25,7,25,9],[22,7,22,9],[23,7,23,9],[24,7,24,9],[18,7,18,9],[19,7,19,9],[20,7,20,9],[21,7,21,9],[17,15,17,17],[19,15,19,16],[19,17,20,18],[20,15,20,16],[5,15,5,18],[7,15,7,17],[10,15,10,16],[11,15,11,16],[12,15,12,16],[9,15,9,16],[9,17,10,18],[11,17,12,18],[13,15,13,17],[15,15,15,18],[0,7,0,12],[10,7,11,9],[13,7,13,11],[5,7,8,12],[1,7,4,12],[9,10,12,12]]}
["Κωδικός","Μάθημα","Βαθμός","Σ.Βαρ/τας",null,null,null,"Οδηγίες Χρήσης",null,null,null,null,null,"Κώτος Ελευθέριος",null,"Κώτος Ελευθέριος"]
[11104,"ΜΑΘ Ι",null,1.5,{"$f":"IF(C2>10,0,IF(C2<5,0,C2*D2))","v":0},{"$f":"IF(C2>10,\"Nαι καλά\",IF(C2<5,\"✗\",\"✓\"))","v":"✗"},null,"1) Συμπλήρωσε τους βαθμούς σου, των υποχρεωτικών μαθημάτων, στη στήλη C στις γραμμές 2 έως 32. Αν υπάρχουν αμφιβολίες σχετικά με τις συντομογραφίες, συμβουλέψου την καρτέλα \"Υποχρεωτικά\" (Κάτω μέρος του παραθύρου). ",null,null,null,null,null,"Κώτος Ελευθέριος",null,"Κώτος Ελευθέριος"]
[11101,"ΦΥΣ Ι",null,1.5,0,"✗",null,null,null,null,null,null,null,"Κώτος Ελευθέριος",null,"Κώτος Ελευθέριος"]
["11133Θ","ΑΝΟΧ Ι",null,1.2,0,"✗",null,null,null,null,null,null,null,"Κώτος Ελευθέριος",null,"Κώτος Ελευθέριος"]
["11133Π","ΠΑΝΟΧ Ι",null,0.8,0,"✗",null,null,null,null,null,null,null,"Κώτος Ελευθέριος",null,"Κώτος Ελευθέριος"]
[11205,"ΜΑΘ ΙΙ",null,1.5,0,"✗",null,"2) Πήγαινε στην καρτέλα \"Επιλεγόμενα\", όπου και θα βρεις τα μαθήματα επιλογής με τους συντελεστές βαρύτητάς τους και επίλεξε τα μαθήματα που σε ενδιαφέρουν. Πρέπει να συμπληρωθούν ένα-ένα,και όχι με την αυτόματη συμπλήρωση! ",null,null,null,null,null,"Κώτος Ελευθέριος",null,"Πρόγραµµα Οινολογικής Εκπαίδευσης"]
[11201,"ΦΥΣ ΙΙ",null,1.5,0,"✗",null,null,null,null,null,null,null,"Κώτος Ελευθέριος"]
["11232Θ","ΑΝΟΧ ΙΙ",null,1.2,0,"✗",null,null,null,null,null,null,null,"Κώτος Ελευθέριος",null,"Έχεις περάσει Αμπελουργία;",null,null,false]
["11232Π","ΠΑΝΟΧ ΙΙ",null,0.8,0,"✗",null,null,null,null,null,null,null,"Κώτος Ελευθέριος",null,null,null,null,false]
[11213,"ΑΝΑΧ",null,2,0,"✗",null,null,null,false,{"$f":"IF(J10=TRUE,\"\",\"Είτε δεν έχεις βάλει τον ΑΜ σου στην “Αρχική” είτε οι μακροεντολές δεν είναι ενεργοποιημένες . Πήγαινε στη “Αρχική” και ακλούθησε τις οδηγίες!\")","v":"Είτε δεν έχεις βάλει τον ΑΜ σου στην “Αρχική” είτε οι μακροεντολές δεν είναι ενεργοποιημένες . Πήγαινε στη “Αρχική” και ακλούθησε τις οδηγίες!"},null,null,"Κώτος Ελευθέριος",null,{"$f":"IF(S9=TRUE,\"Αμπελουργία ✓\",IF(S8=TRUE,\"Αμπελουργία ✓\",\"Αμπελουργία✗\"))","v":"Αμπελουργία✗"},null,{"$f":"IF(P10=\"Αμπελουργία✗\",\"Δεν πληροίς τις προϋποθέσεις\",IF(P11=\"Οικονομικά✗\",\"Δεν πληροίς τις προϋποθέσεις\",IF(P12=\"Χ.&Τ. Οίνου✗\",\"Δεν πληροίς τις προϋποθέσεις\",IF(P13=\"Κ.Βιολογία✗\",\"Δεν πληροίς τις προϋποθέσεις\",\"Εντάξει!\"))))","v":"Δεν πληροίς τις προϋποθέσεις"}]
[11301,"ΜΑΘ ΙII",null,1.5,0,"✗",null,"Για φοιτητές με έτος εγγραφής 2012 και 2013",null,null,null,null,null,"Κώτος Ελευθέριος",null,{"$f":"IF(S9=TRUE,\"Οικονομικά ✓\",IF(F66=\"✓\",\"Οικονομικά ✓\",\"Οικονομικα✗\"))","v":"Οικονομικα✗"}]
[11323,"ΟΡΓΧ Ι",null,1.5,{"$f":"IF(C12>10,0,IF(C12<5,0,C12*D12))","v":0},"✗",null,null,null,null,null,null,null,"Κώτος Ελευθέριος",null,{"$f":"IF(S9=TRUE,\"Χ.&Τ. Οίνου ✓\",IF(F40=\"✓\",\"Χ.&Τ. Οίνου ✓\",\"Χ.&Τ. Οίνου✗\"))","v":"Χ.&Τ. Οίνου✗"},null,{"$f":"IF(R10=\"Εντάξει!\",\"å\",0)","v":0}]
["11332Θ","ΦΑΣΜΑ",null,1.2,0,"✗",null,null,null,null,null,null,null,"Κώτος Ελευθέριος",null,{"$f":"IF(S9=TRUE,\"Κ.Βιολογία ✓\",IF(F67=\"✓\",\"Κ.Βιολογία ✓\",\"Κ.Βιολογία✗\"))","v":"Κ.Βιολογία✗"}]
["11332Π","ΠΦΑΣΜΑ",null,0.8,0,"✗",null,"!!Πρόσεξε αν θα βάλεις (,) ή (.) για την υποδιαστολή!!",null,null,null,null,null,"Κώτος Ελευθέριος"]
[11313,"ΕΝΟΧ Ι",null,2,0,"✗",null,null,null,null,null,null,null,"Κώτος Ελευθέριος",null,"Κώτος Ελευθέριος"]
[11302,"ΠΡΟΓΡ",null,2,{"$f":"IF(C16>10,0,IF(C16<5,0,C16*D16))","v":0},"✗",null,null,null,null,null,null,null,"Κώτος Ελευθέριος",null,"Πιστοποιητικό Γνώσεων Χειρισµού Η/Υ"]
[11414,"ΦΧ Ι",null,1.5,0,"✗",null,null,null,null,"+Bonus",null,null,"Κώτος Ελευθέριος"]
["11422Θ","ΟΡΓΧ ΙΙ",null,1.2,0,"✗",null,{"$f":"IF((COUNTIF(F12,\"✓\")+COUNTIF(F18,\"✓\")+COUNTIF(F25,\"✓\"))>1,IF((COUNTIF(F26,\"✓\")+COUNTIF(F32,\"✓\"))>0,\"✓Τομέας Οργανικής\",\"✗Τoμέας Οργανικής\"),\"✗Τομέας Οργανικής\")","v":"✗Τομέας Οργανικής"},null,null,{"$f":"IF(G27=\"-\",\"-\",IF(H18=\"✓Τομέας Οργανικής\",(G27+IF(F12=\"✓\",C12,0)+IF(F18=\"✓\",C18*0.6,0)+IF(F25=\"✓\",C25*0.6,0)+IF(F26=\"✓\",C26*0.4,0)+IF(F32=\"✓\",C32*0.4,0)),0))","v":0},null,null,"Κώτος Ελευθέριος"]
["11433Θ","ΑΝΟΧ ΙΙΙ",null,1.2,0,"✗",{"$f":"IF(F69=\"✓\",\"Aυτό είναι πλέον άχρηστο.\",\"\")","v":""},{"$f":"IF(OR(C10>10,C15>10,C21>10),\"✗Τομέας Aναλυτικής\",IF(OR(C10<5,C21<5,C15<5),\"✗Τομέας Aναλυτικής\",\"✓Τομέας Aναλυτικής\"))","v":"✗Τομέας Aναλυτικής"},null,null,{"$f":"IF(G27=\"-\",\"-\",IF(H19=\"✓Τομέας Aναλυτικής\",(G27+IF(F10=\"✓\",C10,0)+IF(F15=\"✓\",C15,0)+IF(F21=\"✓\",C21,0)),0))","v":0},null,null,"Κώτος Ελευθέριος"]
["11433Π","ΠΑΝΟΧ ΙΙΙ",null,0.8,0,"✗",null,{"$f":"IF(AND(F20=\"✓\",F19=\"✓\")=TRUE,IF(COUNTIF(F8:F9,\"✓\")+COUNTIF(F4:F5,\"✓\")>=3,\"✓Τομέας Aνόργανης\",\"✗Τoμέας Aνόργανης\"),\"✗Τoμέας Aνόργανης\")","v":"✗Τoμέας Aνόργανης"},null,null,{"$f":"IF(G27=\"-\",\"-\",IF(H20=\"✓Τομέας Aνόργανης\",(G27+IF(F4=\"✓\",C4*0.6,0)+IF(F8=\"✓\",C8*0.6,0)+IF(F19=\"✓\",C19*0.6,0)+IF(F20=\"✓\",C20*0.4,0)+IF(F9=\"✓\",C9*0.4,0)+IF(F5=\"✓\",C5*0.4,0)),0))","v":0},null,null,"Κώτος Ελευθέριος",null,{"$f":"IF(F68=\"✓\",\"Χρήση Η/Υ ✓\",\"Χρήση Η/Υ✗\")","v":"Χρήση Η/Υ✗"},null,{"$f":"IF(P20=\"Χρήση Η/Υ✗\",\"Δεν πληροίς τις προϋποθέσεις\",IF(P21=\"Π.Οργανικής ΙΙΙ✗\",\"Δεν πληροίς τις προϋποθέσεις\",IF(P22=\"Π.Ανόργανης ΙΙ✗\",\"Δεν πληροίς τις προϋποθέσεις\",IF(P23=\"Π.Φυσ/χημείας ΙΙΙ✗\",\"Δεν πληροίς τις προϋποθέσεις\",\"Εντάξει!\"))))","v":"Δεν πληροίς τις προϋποθέσεις"}]
[11415,"ΕΝΟΧ ΙΙ",null,2,0,"✗","Για να ξεκινήσεις Πτυχιακή χρειάζεσαι ακόμα:                 ",{"$f":"IF(OR(C22>10,C17>10,C4>10,C23>10,C5>10),\"✗Τομέας Φυσικοχημείας\",IF(OR(C22<5,C17<5,C23<5,C4<5,C5<5),\"✗Τομέας Φυσικοχημείας\",\"✓Τομέας Φυσικοχημείας\"))","v":"✗Τομέας Φυσικοχημείας"},null,null,{"$f":"IF(G27=\"-\",\"-\",IF(H21=\"✓Τομέας Φυσικοχημείας\",(G27+IF(F17=\"✓\",C17,0)+IF(F22=\"✓\",C22*0.65,0)+IF(F4=\"✓\",C4*0.6,0)+IF(F23=\"✓\",C23*0.35,0)+IF(F5=\"✓\",C5*0.4,0)),0))","v":0},null,null,"Κώτος Ελευθέριος",null,{"$f":"IF(F32=\"✓\",\"Προγραμματισμός ✓\",\"Προγραμματισμός✗\")","v":"Προγραμματισμός✗"}]
["11514Θ","ΦΧ ΙΙ",null,1.3,0,"✗",null,{"$f":"IF(OR(C10>10,C12>10,C24>10),\"✗Τομέας Πολυμερών\",IF(OR(C10<5,C12<5,C24<5),\"✗Τομέας Πολυμερών\",\"✓Τομέας Πολυμερών\"))","v":"✗Τομέας Πολυμερών"},null,null,{"$f":"IF(G27=\"-\",\"-\",IF(H22=\"✓Τομέας Πολυμερών\",(G27+IF(F10=\"✓\",C10,0)+IF(F12=\"✓\",C12,0)+IF(F24=\"✓\",C24,0)),0))","v":0},null,null,"Κώτος Ελευθέριος",null,{"$f":"IF(F9=\"✓\",\"Π.Ανόργανης ΙΙ ✓\",\"Π.Ανόργανης ΙΙ✗\")","v":"Π.Ανόργανης ΙΙ✗"},null,{"$f":"IF(R20=\"Εντάξει!\",\"¿\",0)","v":0}]
["11514Π","ΠΦΧ ΙΙ",null,0.7,0,"✗",null,{"$f":"IF(OR(C10>10,C15>10,C12>10),\"✗Τομέας Βιομηχανικής\",IF(OR(C10<5,C15<5,C12<5),\"✗Τομέας Βιομηχανικής\",\"✓Τομέας Βιομηχανικής\"))","v":"✗Τομέας Βιομηχανικής"},null,null,{"$f":"IF(G27=\"-\",\"-\",IF(H23=\"✓Τομέας Βιομηχανικής\",(G27+IF(F12=\"✓\",C12,0)+IF(F10=\"✓\",C10,0)+IF(F15=\"✓\",C15,0)),0))","v":0},null,null,"Κώτος Ελευθέριος",null,{"$f":"IF(F28=\"✓\",\"Π.Φυσ/χημείας ΙΙΙ ✓\",\"Π.Φυσ/χημείας ΙΙΙ✗\")","v":"Π.Φυσ/χημείας ΙΙΙ✗"}]
[11528,"ΒΙΟΜΧ",null,1.5,0,"✗",{"$f":"IF(COUNTIF(F2:F32,\"✓\")>=13,\"Έτοιμος!!!\",13-COUNTIF(F2:F32,\"✓\") &\" μαθήματα\")","v":"13 μαθήματα"},{"$f":"IF(F5=\"✓\",IF(F4=\"✓\",IF(F31=\"✓\",IF(OR(F10=\"✓\",F21=\"✓\")=TRUE,\"✓Τομέας Περιβάλλοντος\",\"✗Τομέας Περιβάλλοντος\"),\"✗Τομέας Περιβάλλοντος\"),\"✗Τομέας Περιβάλλοντος\"),\"✗Τομέας Περιβάλλοντος\")","v":"✗Τομέας Περιβάλλοντος"},null,null,{"$f":"IF(G27=\"-\",\"-\",IF(H24=\"✓Τομέας Περιβάλλοντος\",(G27+IF(F4=\"✓\",C4*0.6,0)+IF(F5=\"✓\",C5*0.4,0)+IF(F31=\"✓\",C31,0)+IF(C10>=C21,IF(F10=\"✓\",C10,0),0)+IF(C21>C10,IF(F21=\"✓\",C21,0),0)),0))","v":0},null,null,"Κώτος Ελευθέριος"]
["11526Θ","ΟΡΓΧ ΙΙΙ",null,1.2,0,"✗",null,{"$f":"IF(OR(C15>10,C30>10),\"✗Τομέας Βιοχημείας\",IF(OR(C15<5,C30<5),\"✗Τομέας Βιοχημείας\",\"✓Τομέας Βιοχημείας\"))","v":"✗Τομέας Βιοχημείας"},null,null,{"$f":"IF(G27=\"-\",\"-\",IF(H25=\"✓Τομέας Βιοχημείας\",(G27+IF(F30=\"✓\",C30,0)+IF(F21=\"✓\",C21,0)),0))","v":0},null,null,"Κώτος Ελευθέριος",null,"Κώτος Ελευθέριος"]
["11422Π","ΠΟΡΓΧ ΙΙ",null,0.8,0,"✗","Οι μονάδες σου είναι:",{"$f":"IF(F10=\"✓\",IF(F29=\"✓\",\"✓Τομέας Τροφίμων\",IF(AND(F25=\"✓\",F32=\"✓\")=TRUE,\"✓Τομέας Τροφίμων\",\"✗Τομέας Τροφίμων\")),\"✗Τομέας Τροφίμων\")","v":"✗Τομέας Τροφίμων"},null,null,{"$f":"IF(G27=\"-\",\"-\",IF(H26=\"✓Τομέας Τροφίμων\",G27+IF(F10=\"✓\",C10,0)+IF(C29>=((C25+C32)/2),IF(F29=\"✓\",C29,0),0)+IF(C29<((C25+C32)/2),IF(F25=\"✓\",IF(F32=\"✓\",C25*0.6+C32*0.4,0),0),0),0))","v":0},null,null,"Κώτος Ελευθέριος",null,"Κώτος Ελευθέριος"]
["11614Θ","ΦΧ ΙΙΙ",null,1.3,0,"✗",{"$f":"IF(F69=\"✗\",SUMPRODUCT((C2:C3),(C2:C3>=5)*(C2:C3<=10))+SUMPRODUCT((C6:C7),(C6:C7>=5)*(C6:C7<=10))+SUMPRODUCT((C10:C12),(C10:C12>=5)*(C10:C12<=10))+SUMPRODUCT((C15:C17),(C15:C17>=5)*(C15:C17<=10))+SUMPRODUCT(C21*1,(C21>=5)*(C21<=10))+SUMPRODUCT(C24*1,(C24>=5)*(C24<=10))+SUMPRODUCT(C29:C31,(C29:C31>=5)*(C29:C31<=10))+SUMPRODUCT(C4*0.6,(C4>=5)*(C4<=10))+SUMPRODUCT(C8*0.6,(C8>=5)*(C8<=10))+SUMPRODUCT(C13*0.6,(C13>=5)*(C13<=10))+SUMPRODUCT(C18*0.6,(C18>=5)*(C18<=10))+SUMPRODUCT(C19*0.6,(C19>=5)*(C19<=10))+SUMPRODUCT(C22*0.65,(C22>=5)*(C22<=10))+SUMPRODUCT(C25*0.6,(C25>=5)*(C25<=10))+SUMPRODUCT(C27*0.65,(C27>=5)*(C27<=10))+SUMPRODUCT(C5*0.4,(C5>=5)*(C5<=10))+SUMPRODUCT(C9*0.4,(C9>=5)*(C9<=10))+SUMPRODUCT(C14*0.4,(C14>=5)*(C14<=10))+SUMPRODUCT(C20*0.4,(C20>=5)*(C20<=10))+SUMPRODUCT(C23*0.35,(C23>=5)*(C23<=10))+SUMPRODUCT(C28*0.35,(C28>=5)*(C28<=10))+SUMPRODUCT(C26*0.4,(C26>=5)*(C26<=10))+SUMPRODUCT(C32*0.4,(C32>=5)*(C32<=10))+SUMPRODUCT(C33:C67,(C33:C67>=5)*(C33:C67<=10))+SUMPRODUCT(C69*0.4,(C69>=5)*(C69<=10))+SUMPRODUCT(C68*0,(C68>=5)*(C68<=10))+0,\"-\")","v":0},{"$f":"IF(OR(C10>10,C15>10,C21>10),\"✗Τομέας Κλινικής\",IF(OR(C10<5,C15<5,C21<5),\"✗Τομέας Κλινικής\",\"✓Τομέας Κλινικής\"))","v":"✗Τομέας Κλινικής"},null,null,{"$f":"IF(G27=\"-\",\"-\",IF(H27=\"✓Τομέας Κλινικής\",(G27+IF(F10=\"✓\",C10,0)+IF(F15=\"✓\",C15,0)+IF(F21=\"✓\",C21,0)),0))","v":0},null,null,"Κώτος Ελευθέριος"]
["11614Π","ΠΦΧ ΙΙΙ",null,0.7,0,"✗","Για να πάρεις πτυχίο χρειάζεσαι ακόμα:                 ",{"$f":"COUNTIF(F2:F4,\"✓\")+COUNTIF(F6:F8,\"✓\")+COUNTIF(F10:F13,\"✓\")+COUNTIF(F15:F19,\"✓\")+COUNTIF(F21:F22,\"✓\")+COUNTIF(F24:F25,\"✓\")+COUNTIF(F27,\"✓\")+COUNTIF(F29:F31,\"✓\")&\"/23 Θεωρίες\"","v":"0/23 Θεωρίες"},null,{"$f":"(COUNTIF(F2:F70,\"✓\")/42)","v":0},null,null,null,"Κώτος Ελευθέριος",null,"Κώτος Ελευθέριος"]
[11626,"ΧΤΡΟ",null,1.5,0,"✗",null,{"$f":"COUNTIF(F9,\"✓\")+COUNTIF(F14,\"✓\")+COUNTIF(F20,\"✓\")+COUNTIF(F23,\"✓\")+COUNTIF(F28,\"✓\")+COUNTIF(F32,\"✓\")+COUNTIF(F26,\"✓\")+COUNTIF(F5,\"✓\")&\"/8 Εργαστήρια\"","v":"0/8 Εργαστήρια"},null,null,null,null,null,"Κώτος Ελευθέριος",null,"Κώτος Ελευθέριος"]
[11627,"ΒΙΟΧ",null,1.5,0,"✗",null,{"$f":"COUNTIF(F33:F67,\"✓\")&\"/9 Επιλογής\"","v":"0/9 Επιλογής"},null,null,null,null,null,"Κώτος Ελευθέριος",null,"Κώτος Ελευθέριος"]
[11632,"ΧΠΕΡ",null,1.5,0,"✗",{"$f":"IF(COUNTIF(F2:F70,\"✓\")=42,\"Τι κάνεις ακόμα εδώ;\",42-COUNTIF(F2:F70,\"✓\") &\" μαθήματα\")","v":"42 μαθήματα"},{"$f":"COUNTIF(F69,\"✓\")&\"/1 Πτυχιακή\"","v":"0/1 Πτυχιακή"},null,null,null,null,null,"Κώτος Ελευθέριος",null,"Κώτος Ελευθέριος"]
["11526Π","ΠΟΡΓΧ ΙΙΙ",null,0.8,{"$f":"IF(C32>10,0,IF(C32<5,0,C32*D32))","v":0},"✗",null,{"$f":"COUNTIF(F68,\"✓\")&\"/1 Χρήση Η/Υ\"","v":"0/1 Χρήση Η/Υ"}]
[11515,"ΜΚΡΥΠ",null,1.5,0,{"$f":"IF(C33>10,\"Nαι καλά\",IF(C33<5,\"✗\",\"✓\"))","v":"✗"},null,null,null,null,null,null,null,"Κώτος Ελευθέριος",null,"Κώτος Ελευθέριος"]
[11715,"ΣΑΝΤ",null,1.5,0,"✗"]
[11816,"ΕΔΠ",null,1.5,0,"✗"]
[11633,"ΟΜΧ",null,1.5,0,"✗"]
[11838,"ΑΧΤ",null,1.5,0,"✗"]
[11533,"ΘΟΦ",null,1.5,0,"✗"]
[11739,"ΕΚΑΧ",null,1.5,0,"✗"]
[117211,"ΧΤΟΑΠ",null,2,0,{"$f":"IF(C40>10,\"Nαί καλά\",IF(C40<5,\"✗\",\"✓\"))","v":"✗"}]
[118210,"ΧΒΔ",null,2,0,"✗"]
[118211,"ΧΤΠ",null,1.5,0,"✗"]
[117213,"ΒΙΟΧ ΙΙ",null,2,0,"✗"]
[118212,"ΕΚΒΧ",null,1.5,0,"✗"]
[117214,"ΚΛΧ",null,1.5,0,{"$f":"IF(C45>10,\"Nαι καλά\",IF(C45<5,\"✗\",\"✓\"))","v":"✗"}]
[118121,"ΤΟΞ",null,1.5,0,"✗"]
[116210,"ΦΟΜΜ",null,1.5,0,"✗"]
[117216,"ΦΑΧ",null,1.5,0,"✗"]
[118213,"ΘΒΟΧ",null,1.5,0,"✗"]
[118221,"ΣΜΟΣ",null,1.5,0,"✗"]
[11628,"ΕΠ",null,2,0,"✗"]
[117222,"ΕΘΠ",null,2,0,"✗"]
[11720,"ΠΥΝΕ",null,1.5,0,"✗",null,null,null,null,null,null,null,"Κώτος Ελευθέριος",null,"Κώτος Ελευθέριος"]
[11717,"ΦΧ IV",null,1.5,0,"✗",null,null,null,null,null,null,null,"Κώτος Ελευθέριος",null,"Κώτος Ελευθέριος"]
[11818,"ΡΔΧ",null,1.5,0,"✗",null,null,null,null,null,null,null,"Κώτος Ελευθέριος",null,"Κώτος Ελευθέριος"]
[11719,"ΜΦ",null,1.5,0,"✗",null,null,null,null,null,null,null,"Κώτος Ελευθέριος",null,"Κώτος Ελευθέριος"]
[11718,"ΧΚ",null,1.5,0,"✗",null,null,null,null,null,null,null,"Κώτος Ελευθέριος",null,"Κώτος Ελευθέριος"]
[11737,"ΧΑΤΜ",null,1.5,0,"✗",null,null,null,null,null,null,null,"Κώτος Ελευθέριος",null,"Κώτος Ελευθέριος"]
[11738,"ΧΩΚΝ",null,1.5,0,"✗",null,null,null,null,null,null,null,"Κώτος Ελευθέριος",null,"Κώτος Ελευθέριος"]
[11836,"ΔΤΠΕΡ",null,1.5,0,"✗"]
[11701,"ΔΤΧ",null,1.5,0,"✗"]
[117219,"ΕΠΑΤ",null,2,0,"✗"]
[117220,"ΜΤ",null,2,0,"✗"]
[118218,"ΤΤΡΟΦ",null,1.5,0,"✗"]
[11703,"ΧΥ",null,1.5,0,"✗"]
[11529,"ΟΙΚ",null,1.5,0,"✗"]
[11501,"ΚΒΙΟ",null,1.5,0,"✗"]
[11113,"Η/Υ ",null,0,0,"✗",null,null,null,null,null,null,null,"Κώτος Ελευθέριος",null,"Κώτος Ελευθέριος"]
["11ΠΤ01","ΠΤΥΧ",null,2,0,"✗",null,null,null,null,null," "]
[null,"Σύνολο",{"$f":"SUMIF(C1:C69,\"<>\")","v":0},{"$f":"SUMPRODUCT((D2:D69),(C2:C69>=5)*(C2:C69<=10))","v":0},{"$f":"SUM(E2:E69)","v":0}]
[null,null,null,null,null,"Βαθμός πτυχίου",{"$f":"IF(F72<=6.5,\"ΚΑΛΩΣ\",IF(F72<=8.5,\"!ΛΙΑN ΚΑΛΩΣ!\",IF(F72<=10,\"!!ΑPΙΣΤΑ!!\",\"\")))","v":""}]
[{"$f":"IF(COUNTIF(F2:F70,\"✓\")>42,\"!!!Χρησιμοποίησες την αυτόματη συμπλήρωση και χάλασαν οι αριθμοί! Κάνε αναίρεση και συμπλήρωσε τους βαθμούς σου έναν-έναν.!!!\",\"\")","v":""},null,null,null,null,{"$f":"IF(D70=0,\"Τίποτα ακόμα :(\",E70/D70)","v":"Τίποτα ακόμα :("}]
[null,null,null,null,null,"Σφάλμα ± 0.001"]

{"sheet":"Επιλεγόμενα","index":2,"n_rows":53,"n_cols":27,"rows_kept":53,"cut":false,"hidden":false,"merged":[[29,11,39,14],[40,11,43,14],[43,0,43,2],[38,0,38,2],[39,0,39,2],[40,0,40,2],[41,0,41,2],[42,0,42,2],[36,0,36,2],[37,0,37,2],[6,0,6,2],[7,0,7,2],[0,11,0,14],[1,11,5,14],[0,0,0,2],[1,0,1,2],[2,0,2,2],[3,0,3,2],[4,0,4,2],[5,0,5,2],[20,11,20,14],[18,11,19,14],[15,11,16,14],[7,11,14,14],[17,11,17,14],[8,0,8,2],[9,0,9,2],[10,0,10,2],[11,0,11,2],[12,0,12,2],[13,0,13,2],[14,0,14,2],[15,0,15,2],[16,0,16,2],[17,0,17,2],[18,0,18,2],[19,0,19,2],[20,0,20,2],[21,0,21,2],[22,0,22,2],[29,0,29,2],[30,0,30,2],[31,0,31,2],[32,0,32,2],[23,0,23,2],[24,0,24,2],[25,0,25,2],[26,0,26,2],[27,0,27,2],[49,0,49,2],[50,0,50,2],[51,0,51,2],[21,11,22,14],[23,11,23,14],[24,11,25,14],[26,11,26,14],[44,0,44,2],[45,0,45,2],[46,0,46,2],[47,0,47,2],[48,0,48,2],[33,0,33,2],[34,0,34,2],[35,0,35,2],[28,0,28,2]]}
["Μαθήματα επιλογής",null,null,"Π.Μον","Κωδικός ","Συντ.","Βαθμός","Σ.Βαρ/τας",null,null,null,"Οδηγίες Χρήσης"]
["Αναλυτική Χημεία",null,null,null,null,null,null,null,null,null,null,"Τα μαθήματα σημειωμένα με κόκκινο δεν προσμετρώνται στον εκάστοτε ελάχιστο αριθμό μαθημάτων, που είναι απαραίτητα για τη λήψη του πτυχίου και ο βαθμός τους δεν συνυπολογίζεται στον τελικό βαθμό.",null,null,null,null,null,null,null,null,null,null,null,null,null,null,{"$f":"COUNTIF(J3:J53,\"TRUE\")","v":0}]
["Χημική Οργανολογία - Μικροϋπολογιστές",null,null,6,11515,"ΜΚΡΥΠ",null,1.5,null,false]
["Σύγχρονες Αναλυτικές Τεχνικές",null,null,4,11715,"ΣΑΝΤ",null,1.5,null,false]
["Έλεγχος και Διασφάλιση Ποιότητας",null,null,4,11816,"ΕΔΠ",null,1.5,null,false]
["Ανόργανη Χημεία",null,null,null,null,null,null,null,null,false]
["Οργανομεταλλική Χημεία",null,null,6,11633,"ΟΜΧ",null,1.5,null,false]
["Ανόργανη Χημική Τεχνολογία",null,null,4,11838,"ΑΧΤ",null,1.5,null,false,null,"Αν θες να επιλέξεις ένα μάθημα, απλά κάνε click στο αντίστοιχο κουτάκι δίπλα απ’ τον συντελεστή βαρύτητας και θα προστεθεί αυτόματα στη λίστα σου στην καρτέλα    «Οι βαθμοί μου». Αφού τελειώσεις να διαλέγεις, πήγαινε στην καρτέλα «Οι βαθμοί μου» για να συμπληρώσεις τη στήλη  «Βαθμός». "]
["Θεωρία Ομάδων - Φωτοχημεία",null,null,6,11533,"ΘΟΦ",null,1.5,null,false]
["Ειδικά Κεφάλαια Ανόργανης Χημείας",null,null,6,11739,"ΕΚΑΧ",null,1.5,null,false]
["Βιομηχανική Χημεία",null,null,null,null,null,null,null,null,false]
["Χημεία και Τεχνολογία Οίνου",null,null,7,117211,"ΧΤΟΑΠ",null,2,null,false]
["Χημικές Βιομηχανικές Διεργασίες",null,null,7,118210,"ΧΒΔ",null,2,null,false]
["Χημεία και Τεχνολογία Πετρελαίου",null,null,6,118211,"ΧΤΠ",null,1.5,null,false]
["Αμπελουργία",null,null,0,11803,"ΑΜΠ",null,1.5,null,false]
[" Βιοχημεία",null,null,null,null,null,null,null,null,false,null,"Μπορείς να επιλέξεις μέχρι 9 μαθήματα"]
["Βιοχημεία ΙΙ",null,null,8,117213,"ΒΙΟΧ ΙΙ",null,2,null,false]
["Ειδικά Κεφάλαια Βιοχημείας",null,null,6,118212,"ΕΚΒΧ",null,1.5,null,false,null,"Έχεις επιλέξει: "]
[" Κλινική Χημεία",null,null,null,null,null,null,null,null,false,null,{"$f":"IF(COUNTIF(J3:J59,\"TRUE\")<=9, COUNTIF(J3:J59,\"TRUE\") &\"/9 μαθήματα\",\"9/9 μαθήματα\")","v":"0/9 μαθήματα"}]
["Κλινική Χημεία",null,null,6,117214,"ΚΛΧ",null,1.5,null,false]
["Τοξικολογία - Οικοτοξικολογία",null,null,4,118121,"ΤΟΞ",null,1.5,null,false]
[" Οργανική Χημεία",null,null,null,null,null,null,null,null,false,null,"Πρέπει να συγκεντρώσεις το\nλιγότερο 47 πιστωτικές µονάδες"]
["Φασμ/οπία Οργ. Ενώσεων Μορ. Μοντελ",null,null,6,116210,"ΦΟΜΜ",null,1.5,null,false]
["Φαρμακοχημεία",null,null,4,117216,"ΦΑΧ",null,1.5,null,false,null,"Έχεις συγκεντρώσει: "]
["Θέματα Βιοοργανικής Χημείας",null,null,6,118213,"ΘΒΟΧ",null,1.5,null,false,null,{"$f":"SUMPRODUCT((J3:J53=TRUE)+0,D3:D53) &\"/47 π.μονάδες\"","v":"0/47 π.μονάδες"}]
["Σύγχρονες Μέθοδοι στην Οργ. Σύνθεση",null,null,6,118221,"ΣΜΟΣ",null,1.5,null,false]
[" Πολυμερή",null,null,null,null,null,null,null,null,false]
["Επιστήμη Πολυμερών",null,null,7,11628,"ΕΠ",null,2,null,false]
["Ειδικά Θέματα Πολυμερών",null,null,7,117222,"ΕΘΠ",null,2,null,false]
["Πολυμερή: Υλικά για νέες εφαρμογές",null,null,4,11720,"ΠΥΝΕ",null,1.5,null,false,null,"Σημ: Οι πιστωτικές μονάδες δεν πρέπει να συγχέονται με τις μονάδες της πτυχιακής. Είναι μεγέθη εντελώς ανεξάρτητα. Οι πιστωτικές μονάδες αποτελούν δείκτη της δυσκολίας του κάθε μαθήματος και είναι αριθμοί σταθεροί. Εξασφαλίζουν ότι ένας φοιτητής δεν θα μπορεί να διαλέξει μόνο τα ευκολότερα μαθήματα επιλογής. Αθροίζονται πάντα ολόκληροι, αρκεί να έχει περαστεί το μάθημα με οποιονδήποτε βαθμό, και η δουλειά τους σταματά εκεί."]
["Φυσικοχημεία",null,null,null,null,null,null,null,null,false]
["Φυσικοχημεία ΙV",null,null,6,11717,"ΦΧ IV",null,1.5,null,false]
["Ραδιοχημεία",null,null,6,11818,"ΡΔΧ",null,1.5,null,false]
["Μοριακή Φασματοσκοπία",null,null,4,11719,"ΜΦ",null,1.5,null,false]
["Χημική Κινητική",null,null,6,11718,"ΧΚ",null,1.5,null,false]
["Χημεία Περιβάλλοντος",null,null,null,null,null,null,null,null,false]
["Χημεία Ατμόσφαιρας",null,null,6,11737,"ΧΑΤΜ",null,1.5,null,false]
["Χημική Ωκεανογραφία",null,null,6,11738,"ΧΩΚΝ",null,1.5,null,false]
["Διαχείριση και Τεχνολογία Περιβάλλοντος",null,null,6,11836,"ΔΤΠΕΡ",null,1.5,null,false]
["Χημεία και Εκπαίδευση",null,null,null,null,null,null,null,null,false]
["Διδακτική της Χημείας ",null,null,6,11701,"ΔΤΧ",null,1.5,null,false,null,"         Οι μονάδες για την πτυχιακή είναι συνάρτηση του τελικού σου βαθμού σε κάθε μάθημα και ουδεμία σχέση έχουν με τις πιστωτικές μονάδες."]
["Ψυχολογία της Μάθησης",null,null,0,11502,"ΨΥΧ",null,1.5,null,false]
[" Ιστορία των Φυσικών Επιστημών",null,null,0,11602,"ΙΣΤΦΕ",null,1.5,null,false]
["Εισαγωγή στην Παιδαγωγική",null,null,0,11603,"ΠΑΙΔ",null,1.5,null,false]
[" Χημεία Τροφίμων",null,null,null,null,null,null,null,null,false]
["Έλεγχος Ποιότητας και Ασφάλειας Τροφ.",null,null,9,117219,"ΕΠΑΤ",null,2,null,false]
["Μικροβιολογία Τροφίμων",null,null,9,117220,"ΜΤ",null,2,null,false]
["Τεχνολογία Τροφίμων",null,null,5,118218,"ΤΤΡΟΦ",null,1.5,null,false]
["Άλλα",null,null,null,null,null,null,null,null,false]
["Χημεία Υλικών",null,null,6,11703,"ΧΥ",null,1.5,null,false]
["Οικονομική και Διοίκηση Επιχειρήσεων",null,null,4,11529,"ΟΙΚ",null,1.5,null,false]
["Σύγχρονα Θέματα Κυτταρικής Βιολογίας",null,null,4,11501,"ΚΒΙΟ",null,1.5,null,false]
[null,null,null,null,null,null,null,null,null,false]

{"sheet":"Υποχρεωτικά","index":3,"n_rows":130,"n_cols":10,"rows_kept":130,"cut":false,"hidden":false,"merged":[[8,9,13,12],[40,0,40,3],[41,0,41,3],[13,0,13,3],[18,0,18,3],[39,0,39,3],[33,0,33,3],[34,0,34,3],[35,0,35,3],[36,0,36,3],[38,0,38,3],[17,0,17,3],[19,0,19,3],[9,0,9,3],[10,0,10,3],[14,0,14,3],[1,9,6,12],[22,0,22,3],[23,0,23,3],[37,0,37,3],[30,0,30,3],[24,0,24,3],[31,0,31,3],[26,0,26,3],[27,0,27,3],[28,0,28,3],[29,0,29,3],[7,0,7,3],[11,0,11,3],[25,0,25,3],[12,0,12,3],[32,0,32,3],[107,0,107,3],[108,0,108,3],[0,0,0,3],[2,0,2,3],[3,0,3,3],[4,0,4,3],[5,0,5,3],[1,0,1,3],[109,0,109,3],[6,0,6,3],[102,0,102,3],[103,0,103,3],[104,0,104,3],[105,0,105,3],[98,0,98,3],[99,0,99,3],[100,0,100,3],[101,0,101,3],[20,0,20,3],[21,0,21,3],[8,0,8,3],[15,0,15,3],[16,0,16,3],[106,0,106,3],[129,0,129,3],[125,0,125,3],[126,0,126,3],[127,0,127,3],[128,0,128,3],[0,9,0,12],[122,0,122,3],[123,0,123,3],[124,0,124,3],[118,0,118,3],[119,0,119,3],[120,0,120,3],[121,0,121,3],[114,0,114,3],[115,0,115,3],[116,0,116,3],[117,0,117,3],[110,0,110,3],[111,0,111,3],[112,0,112,3],[113,0,113,3]]}
["Υποχρεωτικά Μαθήματα ",null,null,null,"Κωδικός ","Συντ.","Βαθμός","Σ.Βαρ/τας",null,"Οδηγίες Χρήσης"]
["1ο Εξάμηνο",null,null,null,null,null,null,null,null,"Ο Πίνακας αυτός είναι μόνο μια λίστα των υποχρεωτικών μαθημάτων ανά εξάμηνο. Δεν έχει καμία πρόσθετη λειτουργία. Οι βαθμοί χρειάζεται να συμπληρωθούν μόνο στην καρτέλα «Οι βαθμοί μου». "]
["Μαθηματικά Ι",null,null,null,11104,"ΜΑΘ Ι",null,1.5]
["Φυσική Ι",null,null,null,11101,"ΦΥΣ Ι",null,1.5]
["Γενική και Ανόργανη Χημεία Ι",null,null,null,"11133Θ","ΑΝΟΧ Ι",null,1.2]
["Πρακτικά Γενικής & Ανόργανης Χημείας Ι ",null,null,null,"11133Π","ΠΑΝΟΧ Ι",null,0.8]
["2ο Εξάμηνο"]
["Μαθηματικά ΙΙ",null,null,null,11205,"ΜΑΘ ΙΙ",null,1.5]
["Φυσική ΙΙ",null,null,null,11201,"ΦΥΣ ΙΙ",null,1.5,null,"Το μάθημα «Χρήση Η/Υ και Εφαρμογές τους» δεν συμπεριλαμβάνεται κατά τον υπολογισμό του τελικού βαθμού, αλλά είναι απαραίτητο να το έχεις περάσει για να πάρεις πτυχίο."]
["Ανόργανη Χημεία ΙΙ",null,null,null,"11232Θ","ΑΝΟΧ ΙΙ",null,1.2]
["Πρακτικά Ανόργανης Χημείας ΙΙ ",null,null,null,"11232Π","ΠΑΝΟΧ ΙΙ",null,0.8]
["Αναλυτική Χημεία",null,null,null,11213,"ΑΝΑΧ",null,2]
[" 3ο Εξάμηνο"]
["Μαθηματικά ΙII",null,null,null,11301,"ΜΑΘ ΙII",null,1.5]
["Οργανική Χημεία Ι",null,null,null,11323,"ΟΡΓΧ Ι",null,1.5]
["Φασματοσκοπία στην Ανόργανη Χημεία",null,null,null,"11332Θ","ΦΑΣΜΑ",null,1.2]
[" Πρακτικά Φασματοσκοπίας στην Αν.Χ.",null,null,null,"11332Π","ΠΦΑΣΜΑ",null,0.8]
["Ενόργανη Ανάλυση Ι",null,null,null,11313,"ΕΝΟΧ Ι",null,2]
[" Αρ. Μέθοδοι & Προγραµµατισµός ",null,null,null,11302,"ΠΡΟΓΡ",null,2]
["4ο Εξάμηνο"]
["Φυσικοχημεία Ι",null,null,null,11414,"ΦΧ Ι",null,1.5]
["Οργανική Χημεία ΙΙ",null,null,null,"11422Θ","ΟΡΓΧ ΙΙ",null,1.2]
["Ανόργανη Χημεία ΙΙΙ",null,null,null,"11433Θ","ΑΝΟΧ ΙΙΙ",null,1.2]
[" Πρακτικά Ανόργανης Χημείας ΙΙΙ",null,null,null,"11433Π","ΠΑΝΟΧ ΙΙΙ",null,0.8]
["Ενόργανη Ανάλυση ΙΙ",null,null,null,11415,"ΕΝΟΧ ΙΙ",null,2]
[" 5ο Εξάμηνο"]
["Φυσικοχημεία ΙΙ",null,null,null,"11514Θ","ΦΧ ΙΙ",null,1.3]
["Πρακτικά Φυσικοχημείας ΙΙ ",null,null,null,"11514Π","ΠΦΧ ΙΙ",null,0.7]
[" Βιομηχανική Χημεία",null,null,null,11528,"ΒΙΟΜΧ",null,1.5]
["Οργανική Χημεία ΙΙΙ",null,null,null,"11526Θ","ΟΡΓΧ ΙΙΙ",null,1.2]
["Πρακτικά Οργανικής Χημείας ΙΙ",null,null,null,"11422Π","ΠΟΡΓΧ ΙΙ",null,0.8]
["6ο Εξάμηνο"]
["Φυσικοχημεία ΙΙΙ",null,null,null,"11614Θ","ΦΧ ΙΙΙ",null,1.3]
["Πρακτικά Φυσικοχημείας ΙΙΙ",null,null,null,"11614Π","ΠΦΧ ΙΙΙ",null,0.7]
["Χημεία Τροφίμων",null,null,null,11626,"ΧΤΡΟ",null,1.5]
["Βιοχημεία Ι",null,null,null,11627,"ΒΙΟΧ",null,1.5]
["Χημεία Περιβάλλοντος",null,null,null,11632,"ΧΠΕΡ",null,1.5]
["Πρακτικά Οργανικής Χημείας ΙΙΙ",null,null,null,"11526Π","ΠΟΡΓΧ ΙΙΙ",null,0.8]
["7ο-8ο Εξάμηνο"]
["Πτυχιακή Εργασία",null,null,null,"11ΠΤ01","ΠΤΥΧ",null,2]
["Extra"]
["Χρήση Η/Υ και Εφαρμογές τους",null,null,null,11113,"Η/Υ ",null,0]
[]
[]
[]
[]
[]
[]
[]
[]
[]
[]
[]
[]
[]
[]
[]
[]
[]
[]
[]
[]
[]
[]
[]
[]
[]
[]
[]
[]
[]
[]
[]
[]
[]
[]
[]
[]
[]
[]
[]
[]
[]
[]
[]
[]
[]
[]
[]
[]
[]
[]
[]
[]
[]
[]
[]
[]
["1ο Εξάμηνο"]
["Μαθηματικά Ι",null,null,null,11104,"ΜΑΘ Ι",null,1.5]
["Φυσική Ι",null,null,null,11101,"ΦΥΣ Ι",null,1.5]
["Γενική και Ανόργανη Χημεία Ι",null,null,null,"11133Θ","ΑΝΟΧ Ι",null,1.2]
["Χρήση Η/Υ και Εφαρμογές τους",null,null,null,11113,"Η/Υ ",null,1.5]
["2ο Εξάμηνο"]
["Μαθηματικά ΙΙ",null,null,null,11205,"ΜΑΘ ΙΙ",null,1.5]
["Φυσική ΙΙ",null,null,null,11201,"ΦΥΣ ΙΙ",null,1.5]
["Ανόργανη Χημεία ΙΙ",null,null,null,"11232Θ","ΑΝΟΧ ΙΙ",null,1.2]
["Αναλυτική Χημεία",null,null,null,11213,"ΑΝΑΧ",null,2]
[" 3ο Εξάμηνο"]
["Οργανική Χημεία Ι",null,null,null,11323,"ΟΡΓΧ Ι",null,1.5]
["Φασματοσκοπία στην Ανόργανη Χημεία",null,null,null,"11332Θ","ΦΑΣΜΑ",null,1.2]
["Ενόργανη Ανάλυση Ι",null,null,null,11313,"ΕΝΟΧ Ι",null,2]
["Αριθμητικές Μέθοδοι- Προγραμματισμός",null,null,null,11302,"ΠΡΟΓΡ",null,2]
["Μαθηματικά ΙΙΙ",null,null,null,11301,"ΜΑΘ ΙΙΙ",null,1.5]
["4ο Εξάμηνο"]
["Φυσικοχημεία Ι",null,null,null,11414,"ΦΧ Ι",null,1.5]
["Οργανική Χημεία ΙΙ",null,null,null,"11422Θ","ΟΡΓΧ ΙΙ",null,1.2]
["Ανόργανη Χημεία ΙΙΙ",null,null,null,"11433Θ","ΑΝΟΧ ΙΙΙ",null,1.2]
["Ενόργανη Ανάλυση ΙΙ",null,null,null,11415,"ΕΝΟΧ ΙΙ",null,2]
[" 5ο Εξάμηνο"]
["Φυσικοχημεία ΙΙ",null,null,null,"11514Θ","ΦΧ ΙΙ",null,1.3]
[" Βιομηχανική Χημεία",null,null,null,11528,"ΒΙΟΜΧ",null,1.5]
["Οργανική Χημεία ΙΙΙ",null,null,null,"11526Θ","ΟΡΓΧ ΙΙΙ",null,1.2]
["6ο Εξάμηνο"]
["Φυσικοχημεία ΙΙΙ",null,null,null,"11614Θ","ΦΧ ΙΙΙ",null,1.3]
["Χημεία Τροφίμων",null,null,null,11626,"ΧΤΡΟ",null,1.5]
["Βιοχημεία Ι",null,null,null,11627,"ΒΙΟΧ",null,1.5]
["Χημεία Περιβάλλοντος",null,null,null,11632,"ΧΠΕΡ",null,1.5]
["7ο-8ο Εξάμηνο"]
["Πτυχιακή Εργασία",null,null,null,"11ΠΤ01","ΠΤΥΧ",null,2]

{"sheet":"Πτυχιακή","index":4,"n_rows":21,"n_cols":14,"rows_kept":21,"cut":false,"hidden":false,"merged":[[2,10,2,12],[3,10,3,12],[8,7,9,9],[12,7,13,9],[8,4,9,6],[4,10,4,12],[5,10,5,12],[6,4,6,6],[7,4,7,6],[6,7,6,9],[7,7,7,9],[8,10,8,12],[2,7,2,9],[3,7,3,9],[12,4,13,6],[4,7,4,9],[25,16,25,17],[16,7,18,9],[14,10,18,12],[17,13,18,15],[20,1,22,8],[16,4,18,6],[14,4,15,6],[0,16,24,17],[0,1,0,15],[1,1,1,15],[4,13,4,15],[5,13,5,15],[9,10,9,12],[10,10,11,12],[12,10,13,12],[18,1,18,3],[0,0,25,0],[11,13,11,15],[12,13,12,15],[13,13,13,15],[14,13,14,15],[2,13,2,15],[3,13,3,15],[6,13,6,15],[7,13,8,15],[10,7,11,9],[14,7,15,9],[6,10,6,12],[7,10,7,12],[14,1,15,3],[5,4,5,6],[5,7,5,9],[2,1,2,3],[3,1,3,3],[4,1,4,3],[5,1,5,3],[2,4,2,6],[3,4,3,6],[4,4,4,6],[6,1,6,3],[7,1,8,3],[16,13,16,15],[15,13,15,15],[9,13,10,15],[10,4,11,6],[9,1,10,3],[12,1,13,3],[16,1,17,3]]}
[]
[null,"Προϋποθέσεις ανάθεσης θέµατος Πτυχιακής εργασίας ανά Τομέα"]
[null,"Αναλυτική Χημεία",null,null,"Κλινική Χημεία",null,null," Βιομηχανική Χημεία",null,null,"Πολυμερή",null,null," Βιοχηµεία"]
[null,"1. Αναλυτική Χηµεία ",null,null,"1. Αναλυτική Χηµεία ",null,null,"1. Αναλυτική Χηµεία",null,null,"1. Αναλυτική Χηµεία",null,null,"1. Ενόργανη Ανάλυση ΙΙ"]
[null,"2. Ενόργανη Ανάλυση Ι",null,null,"2. Ενόργανη Ανάλυση Ι",null,null,"2. Ενόργανη Ανάλυση Ι ",null,null,"2. Οργανική Χηµεία Ι",null,null,"2. Βιοχηµεία Ι"]
[null,"3. Ενόργανη Ανάλυση ΙΙ",null,null,"3. Ενόργανη Ανάλυση ΙΙ",null,null,"3. Οργανική Χηµεία Ι",null,null,"3. Βιοµηχανική Χηµεία"]
[null,"Ανόργανη Χημεία ",null,null,"Οργανική Χημεία",null,null,"Φυσικοχηµεία",null,null,"Χηµεία Τροφίµων",null,null,"Χηµεία Περιβάλλοντος"]
[null,"1. Γενική & Ανόργανη Χηµεία Ι\n                     (Θεωρία) ",null,null,"1. Οργανική Χηµεία Ι",null,null,"1. Φυσικοχηµεία Ι ",null,null,"1. Αναλυτική Χηµεία ",null,null,"1. Γενική & Ανόργανη Χηµεία Ι\n                     (Θεωρία) "]
[null,null,null,null,"2. Οργανική Χηµεία ΙΙ\n                    (Θεωρία)",null,null,"2. Φυσικοχηµεία ΙΙ                                 |                  (Θεωρία)",null,null,"2. Χηµεία Τροφίµων"]
[null,"2. Γενική & Ανόργανη Χηµεία Ι\n                    (Πρακτικά) ",null,null,null,null,null,null,null,null,"ή",null,null,"2. Γενική & Ανόργανη Χηµεία Ι\n                    (Πρακτικά) "]
[null,null,null,null,"3. Οργανική Χηµεία ΙΙ\n                   (Πρακτικά)",null,null,"3. Φυσικοχηµεία ΙΙ\n                   (Πρακτικά) ",null,null,"2.α Οργανική Χηµεία ΙΙΙ                   |                  (Θεωρία) \n"]
[null,"3. Ανόργανη Χηµεία ΙΙ (Θεωρία) ",null,null,null,null,null,null,null,null,null,null,null,"3. Χηµεία Περιβάλλοντος"]
[null,"4. Ανόργανη Χηµεία ΙΙ\n                    (Πρακτικά)",null,null,"4.Οργανική Χηµεία ΙΙΙ                  |                  (Θεωρία) \n",null,null,"4. Γενική & Ανόργανη Χηµεία Ι       |                  (Θεωρία) ",null,null,"2.β Οργανική Χηµεία ΙΙΙ\n                   (Πρακτικά)",null,null,"4. Αναλυτική Χηµεία"]
[null,null,null,null,null,null,null,null,null,null,null,null,null,"ή"]
[null,"5. Ανόργανη Χηµεία ΙΙΙ\n   (Θεωρία) (προαπαιτούµενο)",null,null,"5. Οργανική Χηµεία ΙΙΙ\n                   (Πρακτικά)",null,null,"5. Γενική & Ανόργανη Χηµεία Ι  |                 (Πρακτικά) ",null,null,null,null,null,"4. Ενόργανη Ανάλυση ΙΙ"]
[null,null,null,null,null,null,null,null,null,null,null,null,null,"Χημεία & Εκπαίδευση"]
[null,"6. Ανόργανη Χηµεία ΙΙΙ\n  (Πρακτικά) (προαπαιτούµενο) ",null,null," (3 από τα 5, εκ των οποίων τουλάχιστον 2 θεωρίες            και 1 εργαστήριο) ",null,null,null,null,null,null,null,null,"1. ∆ιδακτική της Χηµείας"]
[null,null,null,null,null,null,null,null,null,null,null,null,null,"+ ό,τι άλλο ορίσει το Εργαστήριο"]
[null,"(5 από τα 6 ) "]
[]
[null,"Ο Πίνακας αυτός είναι μόνο μια λίστα των προαπαιτούμενων μαθημάτων ανά τομέα. Δεν έχει καμία πρόσθετη λειτουργία. Για να δεις αν πληροίς τις προϋποθέσεις για κάθε τομέα, συμβουλέψου τα κελιά Η18-Η27 στην καρτέλα «Οι βαθμοί μου». "]